[Event "*** Titled Tuesday Blitz"]
[Site "Chess.com"]
[Date "2018.10.02"]
[Round "7"]
[White "Cryptinz"]
[Black "Sychev_Klementy"]
[Result "0-1"]
[WhiteElo "2370"]
[BlackElo "2693"]
[TimeControl "180+2"]
[EndTime "14:32:20 PDT"]
[Termination "Sychev_Klementy won by resignation"]

1. e4 {[%clk 0:03:01.9]} 1... g6 {[%clk 0:02:41.8]} 2. d4 {[%clk 0:03:01.8]}
2... Bg7 {[%clk 0:02:43.7]} 3. Be3 {[%clk 0:02:59.8]} 3... d6 {[%clk 0:02:43.5]}
4. f4 {[%clk 0:02:59.1]} 4... a6 {[%clk 0:02:43.1]} 5. Nf3 {[%clk 0:02:59.2]}
5... b5 {[%clk 0:02:44.7]} 6. a4 {[%clk 0:02:59.2]} 6... Bb7 {[%clk 0:02:45.5]}
7. Nbd2 {[%clk 0:02:57.5]} 7... b4 {[%clk 0:02:45.5]} 8. c4 {[%clk 0:02:54.8]}
8... Nf6 {[%clk 0:02:43.4]} 9. Bd3 {[%clk 0:02:54.8]} 9... Ng4 {[%clk
0:02:43.4]} 10. Qe2 {[%clk 0:02:47.5]} 10... Nxe3 {[%clk 0:02:43.9]} 11. Qxe3
{[%clk 0:02:49.4]} 11... Nd7 {[%clk 0:02:45.3]} 12. e5 {[%clk 0:02:46.4]} 12...
c5 {[%clk 0:02:45.9]} 13. e6 {[%clk 0:02:44.2]} 13... fxe6 {[%clk 0:02:40.7]}
14. Qxe6 {[%clk 0:02:46.1]} 14... Nf6 {[%clk 0:02:33.6]} 15. Ng5 {[%clk
0:02:43.1]} 15... Nh5 {[%clk 0:02:28.5]} 16. dxc5 {[%clk 0:02:17.9]} 16... Rf8
{[%clk 0:02:25.5]} 17. O-O-O {[%clk 0:01:58.3]} 17... Nxf4 {[%clk 0:02:25.5]}
18. Qe3 {[%clk 0:01:49.6]} 18... dxc5 {[%clk 0:02:23.6]} 19. Ndf3 {[%clk
0:01:42.6]} 19... Bd4 {[%clk 0:02:15.4]} 20. Nxd4 {[%clk 0:01:38.8]} 20... cxd4
{[%clk 0:02:16.1]} 21. Qd2 {[%clk 0:01:11.4]} 21... e5 {[%clk 0:02:13.2]} 22.
Rhe1 {[%clk 0:01:11.1]} 22... Qxg5 {[%clk 0:02:12.9]} 23. Kb1 {[%clk 0:01:05.8]}
23... O-O-O {[%clk 0:02:08.9]} 24. Qxb4 {[%clk 0:01:03.7]} 24... Nxd3 {[%clk
0:02:06.2]} 25. Rxd3 {[%clk 0:01:05.2]} 25... Qf5 {[%clk 0:02:07.7]} 26. Qa3
{[%clk 0:00:31.4]} 26... Be4 {[%clk 0:02:07.6]} 27. Qc5+ {[%clk 0:00:29.7]}
27... Kd7 {[%clk 0:02:08.1]} 28. Ka2 {[%clk 0:00:23.9]} 28... Bxd3 {[%clk
0:01:54.5]} 29. Rxe5 {[%clk 0:00:25.8]} 29... Bxc4+ {[%clk 0:01:55.8]} 30. Ka3
{[%clk 0:00:20.7]} 30... Qd3+ {[%clk 0:01:56.3]} 31. Kb4 {[%clk 0:00:21.1]}
31... Rb8+ {[%clk 0:01:54.4]} 32. Ka5 {[%clk 0:00:21.6]} 32... Qd2+ {[%clk
0:01:46]} 33. b4 {[%clk 0:00:22.2]} 33... Qxb4+ {[%clk 0:01:46.9]} 34. Qxb4
{[%clk 0:00:23.2]} 34... Rxb4 {[%clk 0:01:48.8]} 35. Kxb4 {[%clk 0:00:25.1]}
35... Be6 {[%clk 0:01:48.8]} 36. Re4 {[%clk 0:00:25.8]} 36... Rb8+ {[%clk
0:01:41.3]} 37. Ka5 {[%clk 0:00:25.2]} 37... Rb2 {[%clk 0:01:34.1]} 38. Rxd4+
{[%clk 0:00:25.9]} 38... Ke7 {[%clk 0:01:36]} 39. Rh4 {[%clk 0:00:25.2]} 39...
h5 {[%clk 0:01:36]} 40. g3 {[%clk 0:00:25.9]} 40... Bg4 {[%clk 0:01:36.7]} 41.
Kxa6 {[%clk 0:00:25.7]} 41... g5 {[%clk 0:01:37.5]} 0-1

[Event "*** Titled Tuesday Blitz"]
[Site "Chess.com"]
[Date "2018.10.02"]
[Round "7"]
[White "SantoBlue"]
[Black "Gabrielian_Artur"]
[Result "1-0"]
[WhiteElo "2815"]
[BlackElo "2684"]
[TimeControl "180+2"]
[EndTime "14:32:23 PDT"]
[Termination "SantoBlue won by resignation"]

1. e4 {[%clk 0:03:01.9]} 1... c5 {[%clk 0:02:59.5]} 2. Nf3 {[%clk 0:03:02.1]}
2... d6 {[%clk 0:03:00.5]} 3. d4 {[%clk 0:03:00.1]} 3... cxd4 {[%clk 0:03:01.6]}
4. Nxd4 {[%clk 0:03:02]} 4... Nf6 {[%clk 0:03:02.2]} 5. Nc3 {[%clk 0:03:03.4]}
5... Nc6 {[%clk 0:03:03.1]} 6. Bg5 {[%clk 0:03:04.1]} 6... e6 {[%clk 0:03:04.1]}
7. Qd2 {[%clk 0:03:05.3]} 7... a6 {[%clk 0:03:04.3]} 8. O-O-O {[%clk 0:03:06.4]}
8... Bd7 {[%clk 0:03:05.6]} 9. f4 {[%clk 0:03:04.9]} 9... Be7 {[%clk 0:03:06]}
10. Nxc6 {[%clk 0:02:50.9]} 10... Bxc6 {[%clk 0:03:05.5]} 11. Qe1 {[%clk
0:02:52.5]} 11... h6 {[%clk 0:03:03.8]} 12. Bxf6 {[%clk 0:02:53.3]} 12... Bxf6
{[%clk 0:02:43.5]} 13. e5 {[%clk 0:02:54.7]} 13... Be7 {[%clk 0:02:44]} 14. Bd3
{[%clk 0:02:49.2]} 14... dxe5 {[%clk 0:02:31.2]} 15. fxe5 {[%clk 0:02:43.9]}
15... Qc7 {[%clk 0:02:26.4]} 16. Kb1 {[%clk 0:02:41]} 16... Rd8 {[%clk
0:02:21.9]} 17. h4 {[%clk 0:02:39]} 17... O-O {[%clk 0:02:10.2]} 18. Rf1 {[%clk
0:02:33.6]} 18... Kh8 {[%clk 0:02:04.5]} 19. g4 {[%clk 0:02:33.6]} 19... Rd4
{[%clk 0:01:59.3]} 20. g5 {[%clk 0:02:32.3]} 20... hxg5 {[%clk 0:01:49.3]} 21.
hxg5 {[%clk 0:02:33.3]} 21... Bxg5 {[%clk 0:01:50.4]} 22. Qg3 {[%clk 0:01:35.1]}
22... Bh6 {[%clk 0:01:49.9]} 23. Rf2 {[%clk 0:01:20.3]} 23... f5 {[%clk
0:01:44]} 24. Ne2 {[%clk 0:01:14.6]} 24... Rd5 {[%clk 0:01:16.2]} 25. Rh2 {[%clk
0:01:15.4]} 25... Qxe5 {[%clk 0:01:13.3]} 26. Nf4 {[%clk 0:01:16.6]} 26... Rf6
{[%clk 0:00:22.8]} 27. Rg1 {[%clk 0:01:06.3]} 27... Rd7 {[%clk 0:00:23.4]} 28.
Ng6+ {[%clk 0:00:57.2]} 28... Rxg6 {[%clk 0:00:24]} 29. Rxh6+ {[%clk 0:00:58.3]}
29... gxh6 {[%clk 0:00:21.1]} 30. Qxe5+ {[%clk 0:00:59]} 30... Rdg7 {[%clk
0:00:16.7]} 31. Rxg6 {[%clk 0:00:59.2]} 1-0

[Event "*** Titled Tuesday Blitz"]
[Site "Chess.com"]
[Date "2018.10.02"]
[Round "7"]
[White "DanielNaroditsky"]
[Black "PaulfromSPb"]
[Result "1-0"]
[WhiteElo "2964"]
[BlackElo "2513"]
[TimeControl "180+2"]
[EndTime "14:32:24 PDT"]
[Termination "DanielNaroditsky won by resignation"]

1. e4 {[%clk 0:03:01.9]} 1... c5 {[%clk 0:03:00.3]} 2. Nf3 {[%clk 0:03:00.3]}
2... d6 {[%clk 0:03:01.5]} 3. d4 {[%clk 0:03:00.7]} 3... cxd4 {[%clk 0:03:02.6]}
4. Nxd4 {[%clk 0:03:02.6]} 4... Nf6 {[%clk 0:03:03.3]} 5. Nc3 {[%clk 0:03:03.7]}
5... a6 {[%clk 0:03:02.9]} 6. h4 {[%clk 0:03:04.6]} 6... e5 {[%clk 0:03:01.6]}
7. Nb3 {[%clk 0:03:04]} 7... Be6 {[%clk 0:03:00.1]} 8. f4 {[%clk 0:03:04.3]}
8... exf4 {[%clk 0:02:10.3]} 9. Bxf4 {[%clk 0:03:06.2]} 9... Nc6 {[%clk
0:02:06.9]} 10. Qd2 {[%clk 0:03:01.4]} 10... Be7 {[%clk 0:02:00]} 11. O-O-O
{[%clk 0:03:01.4]} 11... Ne5 {[%clk 0:01:58.2]} 12. Be2 {[%clk 0:02:43.2]} 12...
Rc8 {[%clk 0:01:55.6]} 13. Kb1 {[%clk 0:02:44.5]} 13... O-O {[%clk 0:01:47]} 14.
g4 {[%clk 0:02:41]} 14... Nfxg4 {[%clk 0:01:30.6]} 15. Rhg1 {[%clk 0:02:37.7]}
15... Kh8 {[%clk 0:01:26.2]} 16. Nd4 {[%clk 0:02:29.4]} 16... Nf6 {[%clk
0:01:22.1]} 17. Nxe6 {[%clk 0:02:12.3]} 17... fxe6 {[%clk 0:01:22.7]} 18. Bxe5
{[%clk 0:02:14]} 18... dxe5 {[%clk 0:01:21.9]} 19. Qg5 {[%clk 0:02:15.7]} 19...
Nh5 {[%clk 0:00:41.1]} 20. Rxd8 {[%clk 0:02:04]} 20... Bxg5 {[%clk 0:00:41.2]}
21. Rxc8 {[%clk 0:02:04.3]} 21... Rxc8 {[%clk 0:00:42]} 22. hxg5 {[%clk
0:01:51.3]} 22... Nf4 {[%clk 0:00:43]} 23. Rd1 {[%clk 0:01:49.2]} 23... h5
{[%clk 0:00:36.5]} 24. gxh6 {[%clk 0:01:41.4]} 24... gxh6 {[%clk 0:00:34.3]} 25.
Bf3 {[%clk 0:01:27]} 25... b5 {[%clk 0:00:31.8]} 26. a3 {[%clk 0:01:26.5]} 26...
Kg7 {[%clk 0:00:30.5]} 27. Rd6 {[%clk 0:01:24.4]} 27... Ra8 {[%clk 0:00:29.9]}
28. Ne2 {[%clk 0:01:19.3]} 28... Kf6 {[%clk 0:00:26.7]} 29. Nxf4 {[%clk
0:01:15.7]} 29... exf4 {[%clk 0:00:28.6]} 30. e5+ {[%clk 0:01:16.7]} 30... Kxe5
{[%clk 0:00:27.9]} 31. Rxe6+ {[%clk 0:01:16.7]} 31... Kxe6 {[%clk 0:00:28.7]}
32. Bxa8 {[%clk 0:01:18.4]} 32... Kf5 {[%clk 0:00:21.5]} 33. Kc1 {[%clk
0:01:19.7]} 33... Kg4 {[%clk 0:00:22.3]} 34. Kd2 {[%clk 0:01:20.7]} 34... Kg3
{[%clk 0:00:21]} 35. Ke2 {[%clk 0:01:20.2]} 35... h5 {[%clk 0:00:22.3]} 36. b3
{[%clk 0:01:20]} 36... Kg4 {[%clk 0:00:22.4]} 37. Bf3+ {[%clk 0:01:20.2]} 37...
Kg5 {[%clk 0:00:23.3]} 38. c4 {[%clk 0:01:20.1]} 38... bxc4 {[%clk 0:00:23.9]}
39. bxc4 {[%clk 0:01:22]} 39... h4 {[%clk 0:00:24.3]} 40. c5 {[%clk 0:01:22.8]}
40... Kf6 {[%clk 0:00:25.3]} 41. c6 {[%clk 0:01:23.7]} 41... Ke7 {[%clk
0:00:26.3]} 42. Kf2 {[%clk 0:01:25.4]} 42... h3 {[%clk 0:00:23.9]} 43. Kg1
{[%clk 0:01:26.5]} 1-0

[Event "*** Titled Tuesday Blitz"]
[Site "Chess.com"]
[Date "2018.10.02"]
[Round "7"]
[White "MFBerna"]
[Black "robbykevlishvili"]
[Result "0-1"]
[WhiteElo "2422"]
[BlackElo "2686"]
[TimeControl "180+2"]
[EndTime "14:32:33 PDT"]
[Termination "robbykevlishvili won by resignation"]

1. e4 {[%clk 0:02:42.6]} 1... c5 {[%clk 0:03:00.4]} 2. Nf3 {[%clk 0:02:42.9]}
2... d6 {[%clk 0:03:00.9]} 3. d4 {[%clk 0:02:43.7]} 3... cxd4 {[%clk 0:03:00.8]}
4. Qxd4 {[%clk 0:02:45.6]} 4... a6 {[%clk 0:02:57.2]} 5. Nc3 {[%clk 0:02:45.1]}
5... Nc6 {[%clk 0:02:57.2]} 6. Qe3 {[%clk 0:02:46.4]} 6... Nf6 {[%clk
0:02:58.8]} 7. h3 {[%clk 0:02:43.1]} 7... g6 {[%clk 0:03:00.2]} 8. Be2 {[%clk
0:02:42.1]} 8... Bg7 {[%clk 0:03:01.8]} 9. O-O {[%clk 0:02:41.2]} 9... O-O
{[%clk 0:03:03.3]} 10. Rd1 {[%clk 0:02:41.3]} 10... Nd7 {[%clk 0:02:59.7]} 11.
Nd5 {[%clk 0:02:36.1]} 11... e6 {[%clk 0:02:54.6]} 12. Nf4 {[%clk 0:02:32.7]}
12... Qe7 {[%clk 0:02:55.5]} 13. Qd2 {[%clk 0:02:12.6]} 13... Nc5 {[%clk
0:02:55.4]} 14. Qxd6 {[%clk 0:02:02.7]} 14... Qxd6 {[%clk 0:02:55.3]} 15. Rxd6
{[%clk 0:02:04.6]} 15... Nxe4 {[%clk 0:02:56.8]} 16. Rd1 {[%clk 0:02:02.7]}
16... Rd8 {[%clk 0:02:55.3]} 17. Rxd8+ {[%clk 0:02:00.2]} 17... Nxd8 {[%clk
0:02:57.2]} 18. c3 {[%clk 0:02:01.1]} 18... Bd7 {[%clk 0:02:49.5]} 19. Be3
{[%clk 0:01:59.6]} 19... Bc6 {[%clk 0:02:49.9]} 20. Rd1 {[%clk 0:01:55.9]} 20...
a5 {[%clk 0:02:49.4]} 21. Bb6 {[%clk 0:01:50.8]} 21... Bf6 {[%clk 0:02:47.3]}
22. Nd3 {[%clk 0:01:31.8]} 22... a4 {[%clk 0:02:42.9]} 23. a3 {[%clk 0:01:28]}
23... Bd5 {[%clk 0:02:38.8]} 24. Nde5 {[%clk 0:01:16.7]} 24... Nc6 {[%clk
0:02:27.4]} 25. c4 {[%clk 0:00:59.9]} 25... Nxe5 {[%clk 0:02:27.7]} 26. cxd5
{[%clk 0:00:59.6]} 26... exd5 {[%clk 0:02:22.9]} 27. Rxd5 {[%clk 0:00:53.5]}
27... Nc6 {[%clk 0:02:23.8]} 28. Bd3 {[%clk 0:00:30.7]} 28... Re8 {[%clk
0:02:19.3]} 29. Rb5 {[%clk 0:00:23.9]} 29... Nd6 {[%clk 0:02:18.3]} 30. Rd5
{[%clk 0:00:23.6]} 30... Nc8 {[%clk 0:02:19]} 31. Be3 {[%clk 0:00:18.4]} 31...
Bxb2 {[%clk 0:02:19.9]} 32. Rb5 {[%clk 0:00:19.1]} 32... Bxa3 {[%clk 0:02:21.1]}
33. Rxb7 {[%clk 0:00:20.3]} 33... Nd6 {[%clk 0:02:19.8]} 34. Rb6 {[%clk
0:00:20]} 34... Na5 {[%clk 0:02:14.8]} 35. Ra6 {[%clk 0:00:20.9]} 35... Bb4
{[%clk 0:02:11.1]} 36. Bd2 {[%clk 0:00:14.7]} 36... Bxd2 {[%clk 0:02:10.9]} 37.
Nxd2 {[%clk 0:00:16.6]} 37... Nb3 {[%clk 0:02:11.7]} 38. Rxd6 {[%clk 0:00:15.4]}
38... Nxd2 {[%clk 0:02:11.1]} 39. Bb5 {[%clk 0:00:15.3]} 39... Re1+ {[%clk
0:02:10.6]} 40. Kh2 {[%clk 0:00:16.6]} 40... Nf1+ {[%clk 0:02:02.2]} 41. Kg1
{[%clk 0:00:12]} 41... Ng3+ {[%clk 0:01:58.2]} 42. Kh2 {[%clk 0:00:10.5]} 42...
Ne4 {[%clk 0:01:59.7]} 43. Rd8+ {[%clk 0:00:06.9]} 43... Kg7 {[%clk 0:02:00.2]}
44. Bxa4 {[%clk 0:00:08.1]} 44... Nxf2 {[%clk 0:02:00.6]} 45. Rd2 {[%clk
0:00:06.5]} 45... Rh1+ {[%clk 0:02:00.7]} 0-1

[Event "*** Titled Tuesday Blitz"]
[Site "Chess.com"]
[Date "2018.10.02"]
[Round "7"]
[White "evgenysharapov"]
[Black "TST2014"]
[Result "0-1"]
[WhiteElo "2442"]
[BlackElo "2477"]
[TimeControl "180+2"]
[EndTime "14:32:35 PDT"]
[Termination "TST2014 won by checkmate"]

1. c4 {[%clk 0:03:01.9]} 1... Nf6 {[%clk 0:02:59.8]} 2. Nc3 {[%clk 0:03:02.2]}
2... g6 {[%clk 0:03:00.7]} 3. g3 {[%clk 0:03:02.8]} 3... Bg7 {[%clk 0:03:01.6]}
4. Bg2 {[%clk 0:03:03.7]} 4... O-O {[%clk 0:03:03.2]} 5. Nf3 {[%clk 0:03:04.4]}
5... d6 {[%clk 0:03:02.6]} 6. O-O {[%clk 0:03:04.6]} 6... c5 {[%clk 0:03:02.5]}
7. d4 {[%clk 0:03:04.9]} 7... Nc6 {[%clk 0:03:03.5]} 8. dxc5 {[%clk 0:02:57.1]}
8... dxc5 {[%clk 0:03:03.8]} 9. Be3 {[%clk 0:02:57.3]} 9... Qa5 {[%clk 0:03:03]}
10. Qb3 {[%clk 0:02:45.7]} 10... Ng4 {[%clk 0:02:58.9]} 11. Bd2 {[%clk 0:02:44]}
11... Qb6 {[%clk 0:02:54.9]} 12. h3 {[%clk 0:02:28.4]} 12... Nge5 {[%clk
0:02:52.1]} 13. Nxe5 {[%clk 0:02:28.3]} 13... Nxe5 {[%clk 0:02:39.2]} 14. Nd5
{[%clk 0:02:23.8]} 14... Qd8 {[%clk 0:02:36.3]} 15. Bc3 {[%clk 0:02:22.6]} 15...
e6 {[%clk 0:02:34.7]} 16. Ne3 {[%clk 0:02:21.4]} 16... Qb6 {[%clk 0:02:32.7]}
17. Rfd1 {[%clk 0:02:12.7]} 17... Qxb3 {[%clk 0:02:24]} 18. axb3 {[%clk
0:02:12.9]} 18... Nc6 {[%clk 0:02:18.1]} 19. Bxg7 {[%clk 0:02:09.4]} 19... Kxg7
{[%clk 0:02:18.8]} 20. Bxc6 {[%clk 0:02:09.5]} 20... bxc6 {[%clk 0:02:19.5]} 21.
Ra5 {[%clk 0:02:09.4]} 21... e5 {[%clk 0:02:09.9]} 22. Rxc5 {[%clk 0:02:08.7]}
22... Bxh3 {[%clk 0:02:09.6]} 23. Rxc6 {[%clk 0:02:03.8]} 23... Rab8 {[%clk
0:02:09]} 24. Rd3 {[%clk 0:01:58.4]} 24... e4 {[%clk 0:02:03.6]} 25. Rc3 {[%clk
0:01:58.3]} 25... h5 {[%clk 0:02:00.4]} 26. c5 {[%clk 0:01:57.1]} 26... Be6
{[%clk 0:01:59.1]} 27. Rc7 {[%clk 0:01:50.2]} 27... a5 {[%clk 0:01:58.5]} 28.
Nc4 {[%clk 0:01:49.6]} 28... Rfd8 {[%clk 0:01:36.7]} 29. Nxa5 {[%clk 0:01:44.7]}
29... Rd2 {[%clk 0:01:36.9]} 30. Re3 {[%clk 0:01:14.3]} 30... Rxb2 {[%clk
0:01:16]} 31. c6 {[%clk 0:01:13.8]} 31... Ra8 {[%clk 0:01:13]} 32. Nc4 {[%clk
0:00:43.8]} 32... Ra1+ {[%clk 0:01:11.4]} 33. Kg2 {[%clk 0:00:43.1]} 33... Rbb1
{[%clk 0:01:07.2]} 34. f3 {[%clk 0:00:24]} 34... Rg1+ {[%clk 0:01:05.2]} 35. Kh2
{[%clk 0:00:24.5]} 35... Rh1+ {[%clk 0:01:04.8]} 36. Kg2 {[%clk 0:00:24.9]}
36... Rag1+ {[%clk 0:01:04.1]} 37. Kf2 {[%clk 0:00:25.7]} 37... Rf1+ {[%clk
0:01:04.3]} 38. Kg2 {[%clk 0:00:26.9]} 38... Bh3# {[%clk 0:01:05.4]} 0-1

[Event "*** Titled Tuesday Blitz"]
[Site "Chess.com"]
[Date "2018.10.02"]
[Round "7"]
[White "grzechu96"]
[Black "m3alam"]
[Result "1-0"]
[WhiteElo "2543"]
[BlackElo "2141"]
[TimeControl "180+2"]
[EndTime "14:32:52 PDT"]
[Termination "grzechu96 won by resignation"]

1. e4 {[%clk 0:03:01.9]} 1... c6 {[%clk 0:02:59.6]} 2. d4 {[%clk 0:03:02.5]}
2... d5 {[%clk 0:03:01.5]} 3. exd5 {[%clk 0:03:04.4]} 3... cxd5 {[%clk
0:03:02.4]} 4. Bd3 {[%clk 0:03:06.1]} 4... Nf6 {[%clk 0:03:03.8]} 5. c3 {[%clk
0:03:01.5]} 5... Qc7 {[%clk 0:03:03.2]} 6. Ne2 {[%clk 0:02:59.5]} 6... Bg4
{[%clk 0:03:01.2]} 7. O-O {[%clk 0:03:00.4]} 7... Nc6 {[%clk 0:02:56.9]} 8. Qe1
{[%clk 0:03:00.4]} 8... e6 {[%clk 0:02:52.4]} 9. f3 {[%clk 0:02:58.6]} 9... Bh5
{[%clk 0:02:51.4]} 10. Qh4 {[%clk 0:03:00.1]} 10... Be7 {[%clk 0:02:34.4]} 11.
Bg5 {[%clk 0:02:36.1]} 11... Bg6 {[%clk 0:02:08.9]} 12. Bxg6 {[%clk 0:02:36.7]}
12... fxg6 {[%clk 0:02:09.5]} 13. Qh3 {[%clk 0:02:27.9]} 13... Qd7 {[%clk
0:02:04.7]} 14. Nf4 {[%clk 0:02:17.6]} 14... Kf7 {[%clk 0:01:52.9]} 15. Re1
{[%clk 0:02:18]} 15... Nd8 {[%clk 0:01:24]} 16. Nd3 {[%clk 0:02:13]} 16... Bd6
{[%clk 0:01:22.4]} 17. Nd2 {[%clk 0:02:11.5]} 17... h6 {[%clk 0:01:22.6]} 18.
Bf4 {[%clk 0:02:12.7]} 18... Nc6 {[%clk 0:01:19.8]} 19. Bxd6 {[%clk 0:02:11]}
19... Qxd6 {[%clk 0:01:19.6]} 20. Nb3 {[%clk 0:02:03.9]} 20... Nd7 {[%clk
0:01:16.2]} 21. Nbc5 {[%clk 0:01:54.2]} 21... Nxc5 {[%clk 0:01:15.4]} 22. Nxc5
{[%clk 0:01:56.1]} 22... Rhe8 {[%clk 0:00:57.7]} 23. Nxb7 {[%clk 0:01:56.5]}
23... Qb8 {[%clk 0:00:56.9]} 24. Nc5 {[%clk 0:01:56.5]} 24... Qxb2 {[%clk
0:00:57.2]} 25. f4 {[%clk 0:01:30.3]} 25... Rad8 {[%clk 0:00:32]} 26. Nxe6
{[%clk 0:01:17.3]} 26... Rd6 {[%clk 0:00:31.8]} 27. f5 {[%clk 0:00:53.3]} 27...
g5 {[%clk 0:00:25.3]} 28. Qh5+ {[%clk 0:00:50]} 28... Ke7 {[%clk 0:00:22.4]} 29.
Nc5+ {[%clk 0:00:43.4]} 29... Ne5 {[%clk 0:00:20.6]} 30. Rxe5+ {[%clk
0:00:43.4]} 30... Kd8 {[%clk 0:00:20.2]} 31. Qxe8+ {[%clk 0:00:44.1]} 31... Kc7
{[%clk 0:00:21.6]} 32. Re7+ {[%clk 0:00:45.4]} 32... Kb6 {[%clk 0:00:20]} 33.
Qb8+ {[%clk 0:00:44.4]} 1-0

[Event "*** Titled Tuesday Blitz"]
[Site "Chess.com"]
[Date "2018.10.02"]
[Round "7"]
[White "jerom555888"]
[Black "Shant_Sargsyan"]
[Result "0-1"]
[WhiteElo "2709"]
[BlackElo "2907"]
[TimeControl "180+2"]
[EndTime "14:32:53 PDT"]
[Termination "Shant_Sargsyan won by resignation"]

1. Nf3 {[%clk 0:03:01.9]} 1... d5 {[%clk 0:02:57.4]} 2. e3 {[%clk 0:03:02.5]}
2... Nf6 {[%clk 0:02:57.8]} 3. b3 {[%clk 0:03:03.3]} 3... g6 {[%clk 0:02:53.1]}
4. Bb2 {[%clk 0:03:04.3]} 4... Bg7 {[%clk 0:02:55]} 5. c4 {[%clk 0:03:05.1]}
5... c6 {[%clk 0:02:55]} 6. Nc3 {[%clk 0:03:05.7]} 6... O-O {[%clk 0:02:55.9]}
7. Rc1 {[%clk 0:03:06]} 7... Bg4 {[%clk 0:02:55.6]} 8. Be2 {[%clk 0:03:06.5]}
8... Nbd7 {[%clk 0:02:56.4]} 9. d4 {[%clk 0:03:07.3]} 9... Ne4 {[%clk
0:02:53.9]} 10. Nxe4 {[%clk 0:03:07.1]} 10... dxe4 {[%clk 0:02:55]} 11. Nd2
{[%clk 0:03:09]} 11... Bxe2 {[%clk 0:02:55.4]} 12. Qxe2 {[%clk 0:03:10.9]} 12...
f5 {[%clk 0:02:57.3]} 13. O-O {[%clk 0:03:07.6]} 13... e5 {[%clk 0:02:58.5]} 14.
f3 {[%clk 0:03:08.7]} 14... exf3 {[%clk 0:02:42.7]} 15. Nxf3 {[%clk 0:03:02.4]}
15... e4 {[%clk 0:02:43.9]} 16. Ne1 {[%clk 0:02:37.1]} 16... Qe7 {[%clk
0:02:41.7]} 17. Nc2 {[%clk 0:02:34.8]} 17... Rad8 {[%clk 0:02:37.6]} 18. Ba3
{[%clk 0:02:16]} 18... c5 {[%clk 0:02:38.8]} 19. dxc5 {[%clk 0:02:17.6]} 19...
Nxc5 {[%clk 0:02:40.7]} 20. Nd4 {[%clk 0:02:19.2]} 20... Bxd4 {[%clk 0:02:28.7]}
21. exd4 {[%clk 0:02:19.5]} 21... Rxd4 {[%clk 0:02:30.6]} 22. Rcd1 {[%clk
0:01:41.5]} 22... Rfd8 {[%clk 0:02:31]} 23. Rxd4 {[%clk 0:01:26.7]} 23... Rxd4
{[%clk 0:02:32.9]} 24. Qe3 {[%clk 0:01:20.1]} 24... Qd6 {[%clk 0:02:31.8]} 25.
g4 {[%clk 0:01:06.1]} 25... b6 {[%clk 0:01:59.1]} 26. gxf5 {[%clk 0:01:05.6]}
26... gxf5 {[%clk 0:02:01]} 27. Rxf5 {[%clk 0:00:55.3]} 27... Rd1+ {[%clk
0:02:01.6]} 28. Rf1 {[%clk 0:00:54.2]} 28... Qg6+ {[%clk 0:01:03.4]} 29. Qg3
{[%clk 0:00:54.2]} 29... Qxg3+ {[%clk 0:01:04.7]} 30. hxg3 {[%clk 0:00:55]}
30... Rd2 {[%clk 0:01:06.1]} 31. Bxc5 {[%clk 0:00:46.3]} 31... bxc5 {[%clk
0:01:08]} 32. Re1 {[%clk 0:00:46.7]} 32... Rxa2 {[%clk 0:00:59.6]} 33. Rxe4
{[%clk 0:00:47.8]} 33... Ra3 {[%clk 0:01:00.8]} 34. Re3 {[%clk 0:00:44.4]} 34...
a5 {[%clk 0:01:01.2]} 35. Kf2 {[%clk 0:00:45.6]} 35... Kf7 {[%clk 0:01:02.3]}
36. Kf3 {[%clk 0:00:46.9]} 36... a4 {[%clk 0:01:00.3]} 37. bxa4 {[%clk
0:00:47.5]} 37... Rxa4 {[%clk 0:01:02.2]} 38. Re4 {[%clk 0:00:47.6]} 38... Kf6
{[%clk 0:01:03.4]} 39. Kg4 {[%clk 0:00:46.8]} 39... Ra3 {[%clk 0:00:59.2]} 40.
Rf4+ {[%clk 0:00:45.5]} 40... Ke5 {[%clk 0:00:59.2]} 41. Kg5 {[%clk 0:00:39.5]}
41... Rxg3+ {[%clk 0:00:58.9]} 0-1

[Event "*** Titled Tuesday Blitz"]
[Site "Chess.com"]
[Date "2018.10.02"]
[Round "7"]
[White "NemtsevIgor"]
[Black "51616516516"]
[Result "1-0"]
[WhiteElo "2375"]
[BlackElo "2293"]
[TimeControl "180+2"]
[EndTime "14:32:53 PDT"]
[Termination "NemtsevIgor won by resignation"]

1. c3 {[%clk 0:03:01.9]} 1... Nf6 {[%clk 0:02:56.7]} 2. Qa4 {[%clk 0:03:01.9]}
2... e5 {[%clk 0:02:51.3]} 3. g4 {[%clk 0:03:01.2]} 3... h6 {[%clk 0:02:49.4]}
4. h3 {[%clk 0:03:00.6]} 4... Nc6 {[%clk 0:02:49.3]} 5. Bg2 {[%clk 0:03:00.4]}
5... d5 {[%clk 0:02:48]} 6. d3 {[%clk 0:03:00.4]} 6... a6 {[%clk 0:02:45.1]} 7.
Nd2 {[%clk 0:03:00.1]} 7... Bc5 {[%clk 0:02:41.7]} 8. b4 {[%clk 0:02:53.9]} 8...
b5 {[%clk 0:02:28.6]} 9. Qb3 {[%clk 0:02:50.2]} 9... Bb6 {[%clk 0:02:27.7]} 10.
Nf1 {[%clk 0:02:42.8]} 10... O-O {[%clk 0:02:25.7]} 11. Ng3 {[%clk 0:02:41.7]}
11... Be6 {[%clk 0:02:09.9]} 12. g5 {[%clk 0:02:32]} 12... hxg5 {[%clk 0:01:56]}
13. Bxg5 {[%clk 0:02:30.8]} 13... Bxf2+ {[%clk 0:01:56.1]} 14. Kxf2 {[%clk
0:02:22.9]} 14... Ng4+ {[%clk 0:01:56.9]} 15. hxg4 {[%clk 0:02:22.5]} 15... Qxg5
{[%clk 0:01:57.7]} 16. Bxd5 {[%clk 0:02:09.1]} 16... Bxd5 {[%clk 0:00:59.2]} 17.
Qxd5 {[%clk 0:02:08.3]} 17... Ne7 {[%clk 0:01:01.1]} 18. Qe4 {[%clk 0:02:03.3]}
18... f5 {[%clk 0:00:56.1]} 19. gxf5 {[%clk 0:01:50.6]} 19... Nxf5 {[%clk
0:00:55.7]} 20. Nxf5 {[%clk 0:01:44.6]} 20... Rxf5+ {[%clk 0:00:55.3]} 21. Nf3
{[%clk 0:01:45.4]} 21... Raf8 {[%clk 0:00:52.3]} 22. Rag1 {[%clk 0:01:39.1]}
22... Qf6 {[%clk 0:00:34.7]} 23. Qd5+ {[%clk 0:01:36]} 23... Rf7 {[%clk
0:00:35.1]} 24. Ke1 {[%clk 0:01:30.3]} 24... c6 {[%clk 0:00:33.1]} 25. Qb3
{[%clk 0:01:27.6]} 25... Rxf3 {[%clk 0:00:24.8]} 26. exf3 {[%clk 0:01:26.3]}
26... Qxf3 {[%clk 0:00:26.7]} 27. Rf1 {[%clk 0:01:06.1]} 27... Qe3+ {[%clk
0:00:24.9]} 28. Kd1 {[%clk 0:01:07.2]} 28... Qxd3+ {[%clk 0:00:21.8]} 29. Kc1
{[%clk 0:01:07.7]} 29... Qe3+ {[%clk 0:00:20.5]} 30. Kb1 {[%clk 0:01:04.7]}
30... Qe4+ {[%clk 0:00:17.8]} 31. Ka1 {[%clk 0:01:02.9]} 31... Qd5 {[%clk
0:00:18.7]} 32. Qxd5 {[%clk 0:01:02.9]} 32... cxd5 {[%clk 0:00:20.6]} 33. Rxf7
{[%clk 0:01:04]} 33... Kxf7 {[%clk 0:00:21.5]} 34. Kb2 {[%clk 0:01:04.3]} 34...
g5 {[%clk 0:00:21.8]} 35. Kc2 {[%clk 0:01:05]} 35... Kf6 {[%clk 0:00:22.9]} 36.
Kd3 {[%clk 0:01:06.2]} 36... Kf5 {[%clk 0:00:23.7]} 37. Ke3 {[%clk 0:01:07.3]}
1-0